[Event "NJSK 2026 Jeugd C"]
[Site "Helmond, Netherlands"]
[Date "2026.04.25"]
[Round "1.14"]
[White "Uitermark, Imre"]
[Black "Nair, Pranav Prasobh"]
[Result "1-0"]
[TimeControl "90min/40moves + 30sec/move"]
[WhiteTitle "-"]
[BlackTitle "-"]
[WhiteFideId "40105199"]
[BlackFideId "40109135"]
[WhiteElo "1957"]
[BlackElo "1747"]

1. e4 {[%clk 01:30:58]} e5 {[%clk 01:30:55]} {[%emt 00:00:06]} 2. Nf3 {[%clk
01:31:24]} {[%emt 00:00:04]} Nc6 {[%clk 01:31:11]} {[%emt 00:00:14]} 3. Bc4
{[%clk 01:31:46]} {[%emt 00:00:09]} Nf6 {[%clk 01:31:35]} {[%emt 00:00:06]} 4.
d3 {[%clk 01:32:10]} {[%emt 00:00:05]} Bc5 {[%clk 01:31:58]} {[%emt 00:00:07]}
5. c3 {[%clk 01:32:29]} {[%emt 00:00:11]} d6 {[%clk 01:32:21]} {[%emt
00:00:07]} 6. O-O {[%clk 01:32:53]} {[%emt 00:00:09]} h6 {[%clk 01:32:33]}
{[%emt 00:00:15]} 7. Nbd2 {[%clk 01:33:17]} {[%emt 00:00:06]} O-O {[%clk
01:32:50]} {[%emt 00:00:13]} 8. Re1 {[%clk 01:33:44]} {[%emt 00:00:03]} Be6
{[%clk 01:31:31]} {[%emt 00:01:49]} 9. Bxe6 {[%clk 01:33:27]} {[%emt 00:00:48]}
fxe6 {[%clk 01:31:51]} {[%emt 00:00:10]} 10. Qb3 {[%clk 01:33:52]} {[%emt
00:00:05]} Qc8 {[%clk 01:28:32]} {[%emt 00:03:49]} 11. Nf1 {[%clk 01:30:12]}
{[%emt 00:04:07]} Kh7 {[%clk 01:27:11]} {[%emt 00:01:52]} 12. Be3 {[%clk
01:29:12]} {[%emt 00:01:31]} Bb6 {[%clk 01:25:44]} {[%emt 00:01:58]} 13. Bxb6
{[%clk 01:23:32]} {[%emt 00:06:09]} axb6 {[%clk 01:26:01]} {[%emt 00:00:13]} 14.
Ng3 {[%clk 01:19:11]} {[%emt 00:04:50]} Qe8 {[%clk 01:22:07]} {[%emt 00:04:25]}
15. d4 {[%clk 01:11:57]} {[%emt 00:07:44]} exd4 {[%clk 01:21:26]} {[%emt
00:01:11]} 16. cxd4 {[%clk 01:07:32]} {[%emt 00:04:55]} Qf7 {[%clk 01:18:46]}
{[%emt 00:03:10]} 17. Qd3 {[%clk 00:52:32]} {[%emt 00:15:29]} e5 {[%clk
01:16:10]} {[%emt 00:03:06]} 18. d5 {[%clk 00:47:32]} {[%emt 00:05:31]} Ne7
{[%clk 01:15:47]} {[%emt 00:00:54]} 19. Rac1 {[%clk 00:31:08]} {[%emt
00:16:52]} Rac8 {[%clk 01:14:55]} {[%emt 00:01:22]} 20. Nh4 {[%clk 00:26:09]}
{[%emt 00:05:29]} Nh5 {[%clk 01:13:34]} {[%emt 00:01:51]} 21. Rf1 {[%clk
00:21:23]} {[%emt 00:05:16]} Nf4 {[%clk 01:09:33]} {[%emt 00:04:31]} 22. Qe3
{[%clk 00:20:47]} {[%emt 00:01:05]} Qf6 {[%clk 01:07:13]} {[%emt 00:02:51]} 23.
Nf3 {[%clk 00:14:36]} {[%emt 00:06:42]} g5 {[%clk 00:55:15]} {[%emt 00:12:27]}
24. Rc3 {[%clk 00:12:55]} {[%emt 00:02:12]} Kh8 {[%clk 00:50:52]} {[%emt
00:04:53]} 25. Rfc1 {[%clk 00:13:10]} {[%emt 00:00:15]} Nfxd5 {[%clk 00:49:09]}
{[%emt 00:02:12]} 26. exd5 {[%clk 00:13:37]} {[%emt 00:00:03]} Nxd5 {[%clk
00:49:04]} {[%emt 00:00:34]} 27. Qe2 {[%clk 00:11:12]} {[%emt 00:02:56]} Nxc3
{[%clk 00:49:15]} {[%emt 00:00:19]} 28. Rxc3 {[%clk 00:11:38]} {[%emt
00:00:05]} Rf7 {[%clk 00:47:52]} {[%emt 00:01:53]} 29. Ne4 {[%clk 00:11:21]}
{[%emt 00:00:47]} Qf5 {[%clk 00:46:46]} {[%emt 00:01:35]} 30. Qd3 {[%clk
00:09:28]} {[%emt 00:02:23]} d5 {[%clk 00:45:28]} {[%emt 00:01:49]} 31. Nd6
{[%clk 00:08:09]} {[%emt 00:01:49]} cxd6 {[%clk 00:44:05]} {[%emt 00:01:53]} 32.
Qxf5 {[%clk 00:08:31]} {[%emt 00:00:07]} Rxc3 {[%clk 00:42:53]} {[%emt
00:01:42]} 33. Qb1 {[%clk 00:08:58]} {[%emt 00:00:03]} Rc6 {[%clk 00:43:04]}
{[%emt 00:00:19]} 34. h3 {[%clk 00:08:17]} {[%emt 00:01:11]} Kg7 {[%clk
00:43:20]} {[%emt 00:00:14]} 35. Qd3 {[%clk 00:07:18]} {[%emt 00:01:29]} d4
{[%clk 00:42:56]} {[%emt 00:00:54]} 36. g4 {[%clk 00:05:30]} {[%emt 00:02:18]}
Rf4 {[%clk 00:41:16]} {[%emt 00:02:10]} 37. Nd2 {[%clk 00:04:44]} {[%emt
00:01:15]} d5 {[%clk 00:40:59]} {[%emt 00:00:49]} 38. Nf1 {[%clk 00:04:37]}
{[%emt 00:00:35]} Rcf6 {[%clk 00:40:49]} {[%emt 00:00:41]} 39. Ng3 {[%clk
00:04:56]} {[%emt 00:00:12]} Rxf2 {[%clk 00:39:57]} {[%emt 00:01:21]} 40. Nh5+
{[%clk 00:05:17]} {[%emt 00:00:09]} Kg8 {[%clk 00:40:19]} {[%emt 00:00:08]} 41.
Nxf6+ {[%clk 00:04:53]} {[%emt 00:00:55]} Rxf6 {[%clk 00:40:42]} {[%emt
00:00:07]} 42. Qb5 {[%clk 00:04:59]} {[%emt 00:00:22]} Rc6 {[%clk 00:40:12]}
{[%emt 00:01:01]} 43. Qxd5+ {[%clk 00:05:23]} {[%emt 00:00:07]} Kh8 {[%clk
00:40:35]} {[%emt 00:00:06]} 44. Qxe5+ {[%clk 00:05:47]} {[%emt 00:00:06]} Kg8
{[%clk 00:41:00]} {[%emt 00:00:05]} 45. Qxd4 {[%clk 00:06:09]} {[%emt
00:00:08]} Kf7 {[%clk 00:41:17]} {[%emt 00:00:13]} 46. Qd7+ {[%clk 00:06:22]}
{[%emt 00:00:17]} Kg6 {[%clk 00:41:40]} {[%emt 00:00:07]} 47. Qxb7 {[%clk
00:06:26]} {[%emt 00:00:26]} Rc1+ {[%clk 00:42:02]} {[%emt 00:00:08]} 48. Kf2
{[%clk 00:06:46]} {[%emt 00:00:11]} Rc2+ {[%clk 00:42:26]} {[%emt 00:00:05]} 49.
Ke3 {[%clk 00:06:50]} {[%emt 00:00:26]} Rxb2 {[%clk 00:42:43]} {[%emt
00:00:13]} 50. Qe4+ {[%clk 00:06:45]} {[%emt 00:00:35]} Kf7 {[%clk 00:43:04]}
{[%emt 00:00:09]} 51. Qf5+ {[%clk 00:07:06]} {[%emt 00:00:09]} Kg8 {[%clk
00:43:26]} {[%emt 00:00:08]} 52. Qg6+ {[%clk 00:07:30]} {[%emt 00:00:06]} Kf8
{[%clk 00:43:48]} {[%emt 00:00:09]} 53. Qf6+ {[%clk 00:07:56]} {[%emt
00:00:04]} 1-0

[Event "NJSK 2026 Jeugd C"]
[Site "Helmond, Netherlands"]
[Date "2026.04.25"]
[Round "1.15"]
[White "Huang, Ziyang"]
[Black "Ngangbam, Chingthang"]
[Result "0-1"]
[TimeControl "90min/40moves + 30sec/move"]
[WhiteTitle "-"]
[BlackTitle "-"]
[WhiteFideId "40105288"]
[BlackFideId "1086510"]
[WhiteElo "1721"]
[BlackElo "1937"]

1. e4 {[%clk 01:30:59]} c5 {[%clk 01:30:53]} {[%emt 00:00:07]} 2. Nf3 {[%clk
01:31:24]} {[%emt 00:00:04]} Nc6 {[%clk 01:31:14]} {[%emt 00:00:10]} 3. d4
{[%clk 01:31:46]} {[%emt 00:00:08]} cxd4 {[%clk 01:31:38]} {[%emt 00:00:07]} 4.
Nxd4 {[%clk 01:32:12]} {[%emt 00:00:04]} Nf6 {[%clk 01:31:58]} {[%emt
00:00:10]} 5. Nc3 {[%clk 01:32:33]} {[%emt 00:00:08]} d6 {[%clk 01:32:15]}
{[%emt 00:00:16]} 6. f3 {[%clk 01:32:42]} {[%emt 00:00:18]} e5 {[%clk
01:32:39]} {[%emt 00:00:06]} 7. Nb3 {[%clk 01:33:08]} {[%emt 00:00:04]} Be7
{[%clk 01:32:26]} {[%emt 00:00:44]} 8. Be3 {[%clk 01:33:32]} {[%emt 00:00:06]}
Be6 {[%clk 01:32:48]} {[%emt 00:01:43]} 9. Nd5 {[%clk 01:32:52]} {[%emt
00:00:35]} Bxd5 {[%clk 01:32:15]} {[%emt 00:01:03]} 10. exd5 {[%clk 01:33:10]}
{[%emt 00:00:12]} Nb4 {[%clk 01:32:16]} {[%emt 00:00:29]} 11. c4 {[%clk
01:33:24]} {[%emt 00:00:16]} a5 {[%clk 01:32:13]} {[%emt 00:00:34]} 12. a3
{[%clk 01:33:25]} {[%emt 00:00:29]} Na6 {[%clk 01:32:38]} {[%emt 00:00:05]} 13.
Bd3 {[%clk 01:33:37]} {[%emt 00:00:18]} O-O {[%clk 01:32:27]} {[%emt 00:00:39]}
14. O-O {[%clk 01:32:56]} {[%emt 00:01:12]} Nd7 {[%clk 01:27:18]} {[%emt
00:05:40]} 15. Qe2 {[%clk 01:31:56]} {[%emt 00:01:30]} f5 {[%clk 01:25:24]}
{[%emt 00:02:23]} 16. Qc2 {[%clk 01:29:36]} {[%emt 00:02:50]} g6 {[%clk
01:21:37]} {[%emt 00:04:18]} 17. g4 {[%clk 01:25:21]} {[%emt 00:04:45]} Bg5
{[%clk 01:17:36]} {[%emt 00:04:30]} 18. f4 {[%clk 01:22:23]} {[%emt 00:03:28]}
exf4 {[%clk 01:11:20]} {[%emt 00:06:47]} 19. Bd4 {[%clk 01:16:43]} {[%emt
00:06:08]} fxg4 {[%clk 00:51:16]} {[%emt 00:20:34]} 20. Bxg6 {[%clk 01:14:27]}
{[%emt 00:02:47]} Ne5 {[%clk 00:45:14]} {[%emt 00:06:31]} 21. Bxh7+ {[%clk
01:14:24]} {[%emt 00:00:33]} Kh8 {[%clk 00:44:49]} {[%emt 00:00:56]} 22. Bf5
{[%clk 01:06:40]} {[%emt 00:08:13]} Bh6 {[%clk 00:38:16]} {[%emt 00:07:03]} 23.
Be6 {[%clk 01:02:12]} {[%emt 00:04:58]} Bg7 {[%clk 00:31:02]} {[%emt 00:07:44]}
24. Bxe5 {[%clk 01:00:02]} {[%emt 00:02:38]} Bxe5 {[%clk 00:30:48]} {[%emt
00:00:46]} 25. Kh1 {[%clk 00:56:37]} {[%emt 00:03:55]} Qh4 {[%clk 00:27:24]}
{[%emt 00:03:54]} 26. h3 {[%clk 00:43:55]} {[%emt 00:13:12]} Qxh3+ {[%clk
00:22:46]} {[%emt 00:05:08]} 27. Qh2 {[%clk 00:41:55]} {[%emt 00:02:30]} Qxh2+
{[%clk 00:22:59]} {[%emt 00:00:17]} 28. Kxh2 {[%clk 00:42:22]} {[%emt
00:00:03]} f3+ {[%clk 00:23:15]} {[%emt 00:00:14]} 29. Kg1 {[%clk 00:42:41]}
{[%emt 00:00:09]} g3 {[%clk 00:23:26]} {[%emt 00:00:21]} 30. Bg4 {[%clk
00:42:52]} {[%emt 00:00:19]} a4 {[%clk 00:23:45]} {[%emt 00:00:11]} 31. Rxf3
{[%clk 00:41:27]} {[%emt 00:01:55]} Rxf3 {[%clk 00:23:47]} {[%emt 00:00:29]} 32.
Bxf3 {[%clk 00:41:54]} {[%emt 00:00:03]} axb3 {[%clk 00:24:10]} {[%emt
00:00:07]} 33. Kg2 {[%clk 00:41:07]} {[%emt 00:01:17]} Nc5 {[%clk 00:24:22]}
{[%emt 00:00:18]} 34. Rh1+ {[%clk 00:41:10]} {[%emt 00:00:26]} Kg7 {[%clk
00:24:44]} {[%emt 00:00:09]} 35. Bd1 {[%clk 00:40:10]} {[%emt 00:01:30]} Rf8
{[%clk 00:24:48]} {[%emt 00:00:25]} 36. Bf3 {[%clk 00:39:35]} {[%emt 00:01:06]}
Nd3 {[%clk 00:23:47]} {[%emt 00:01:31]} 37. Rb1 {[%clk 00:36:04]} {[%emt
00:04:02]} Rh8 {[%clk 00:22:37]} {[%emt 00:01:39]} 38. Rh1 {[%clk 00:34:06]}
{[%emt 00:02:28]} Rxh1 {[%clk 00:22:39]} {[%emt 00:00:28]} 39. Kxh1 {[%clk
00:34:35]} {[%emt 00:00:01]} Nxb2 {[%clk 00:22:21]} {[%emt 00:00:48]} 40. Be2
{[%clk 00:34:24]} {[%emt 00:00:40]} Na4 {[%clk 00:22:41]} {[%emt 00:00:11]} 41.
Bd3 {[%clk 00:34:42]} {[%emt 00:00:12]} Nc3 {[%clk 00:22:45]} {[%emt 00:00:26]}
42. c5 {[%clk 00:34:11]} {[%emt 00:01:01]} dxc5 {[%clk 00:22:58]} {[%emt
00:00:18]} 43. a4 {[%clk 00:34:15]} {[%emt 00:00:26]} b2 {[%clk 00:23:21]}
{[%emt 00:00:06]} 44. Kg2 {[%clk 00:34:36]} {[%emt 00:00:08]} b1=Q {[%clk
00:23:44]} {[%emt 00:00:08]} 45. Bxb1 {[%clk 00:34:51]} {[%emt 00:00:14]} Nxb1
{[%clk 00:24:10]} {[%emt 00:00:04]} 46. a5 {[%clk 00:35:11]} {[%emt 00:00:11]}
c4 {[%clk 00:24:30]} {[%emt 00:00:10]} 47. a6 {[%clk 00:35:38]} {[%emt
00:00:04]} bxa6 {[%clk 00:24:56]} {[%emt 00:00:04]} 48. d6 {[%clk 00:35:56]}
{[%emt 00:00:12]} Bxd6 {[%clk 00:25:21]} {[%emt 00:00:05]} 49. Kf3 {[%clk
00:36:11]} {[%emt 00:00:14]} c3 {[%clk 00:25:43]} {[%emt 00:00:09]} 50. Ke4
{[%clk 00:36:06]} {[%emt 00:00:34]} c2 {[%clk 00:26:07]} {[%emt 00:00:05]} 51.
Kd4 {[%clk 00:36:29]} {[%emt 00:00:08]} c1=Q {[%clk 00:26:21]} {[%emt
00:00:16]} 52. Kd3 {[%clk 00:36:52]} {[%emt 00:00:07]} Qc5 {[%clk 00:26:19]}
{[%emt 00:00:31]} 53. Ke4 {[%clk 00:37:04]} {[%emt 00:00:19]} g2 {[%clk
00:27:09]} {[%emt 00:00:21]} 54. Kf3 {[%clk 00:37:50]} {[%emt 00:00:02]} g1=Q
{[%clk 00:27:24]} {[%emt 00:00:16]} 55. Ke2 {[%clk 00:38:04]} {[%emt 00:00:16]}
Qce3# {[%clk 00:27:42]} {[%emt 00:00:12]} 0-1

[Event "NJSK 2026 Jeugd C"]
[Site "Helmond, Netherlands"]
[Date "2026.04.25"]
[Round "1.17"]
[White "Tkacenko, Kostia"]
[Black "Nadrshin, Oleg"]
[Result "1-0"]
[TimeControl "90min/40moves + 30sec/move"]
[WhiteTitle "-"]
[BlackTitle "-"]
[WhiteFideId "40120708"]
[BlackFideId "40111873"]
[WhiteElo "1552"]
[BlackElo "1894"]

1. e4 {[%clk 01:30:54]} {[%emt 00:00:06]} c5 {[%clk 01:30:55]} {[%emt
00:00:05]} 2. Nf3 {[%clk 01:31:19]} {[%emt 00:00:06]} Nc6 {[%clk 01:31:20]}
{[%emt 00:00:05]} 3. d4 {[%clk 01:31:45]} {[%emt 00:00:03]} cxd4 {[%clk
01:31:46]} {[%emt 00:00:05]} 4. Nxd4 {[%clk 01:32:10]} {[%emt 00:00:05]} Nf6
{[%clk 01:32:10]} {[%emt 00:00:05]} 5. Nc3 {[%clk 01:32:27]} {[%emt 00:00:13]}
e5 {[%clk 01:32:35]} {[%emt 00:00:06]} 6. Ndb5 {[%clk 01:31:27]} {[%emt
00:01:29]} d6 {[%clk 01:32:59]} {[%emt 00:00:07]} 7. Nd5 {[%clk 01:31:41]}
{[%emt 00:00:16]} Nxd5 {[%clk 01:33:21]} {[%emt 00:00:08]} 8. exd5 {[%clk
01:32:00]} {[%emt 00:00:11]} Ne7 {[%clk 01:33:45]} {[%emt 00:00:06]} 9. c4
{[%clk 01:31:38]} {[%emt 00:00:53]} Ng6 {[%clk 01:34:09]} {[%emt 00:00:06]} 10.
g3 {[%clk 01:25:58]} {[%emt 00:06:09]} a6 {[%clk 01:31:59]} {[%emt 00:02:40]}
11. Nc3 {[%clk 01:26:05]} {[%emt 00:00:23]} Be7 {[%clk 01:31:04]} {[%emt
00:01:25]} 12. h4 {[%clk 01:25:17]} {[%emt 00:01:18]} f5 {[%clk 01:25:47]}
{[%emt 00:05:46]} 13. h5 {[%clk 01:13:12]} {[%emt 00:12:36]} Nf8 {[%clk
01:25:44]} {[%emt 00:00:33]} 14. Be3 {[%clk 01:05:13]} {[%emt 00:08:28]} Bg5
{[%clk 01:12:29]} {[%emt 00:13:45]} 15. Qd2 {[%clk 01:03:17]} {[%emt 00:02:27]}
Bxe3 {[%clk 01:09:50]} {[%emt 00:03:08]} 16. Qxe3 {[%clk 01:03:26]} {[%emt
00:00:22]} Nd7 {[%clk 01:05:02]} {[%emt 00:05:18]} 17. Be2 {[%clk 00:48:49]}
{[%emt 00:15:07]} O-O {[%clk 00:59:28]} {[%emt 00:06:02]} 18. a3 {[%clk
00:46:15]} {[%emt 00:03:05]} Nc5 {[%clk 00:55:13]} {[%emt 00:04:45]} 19. h6
{[%emt 00:19:38]} g6 {[%clk 00:51:54]} {[%emt 00:01:08]} 20. f4 {[%clk
00:24:54]} {[%emt 00:05:24]} Re8 {[%clk 00:45:25]} {[%emt 00:06:59]} 21. O-O-O
{[%clk 00:22:39]} {[%emt 00:02:45]} Bd7 {[%clk 00:39:13]} {[%emt 00:06:42]} 22.
b4 {[%clk 00:10:39]} {[%emt 00:12:30]} Na4 {[%clk 00:33:51]} {[%emt 00:05:52]}
23. Nxa4 {[%clk 00:10:41]} {[%emt 00:00:28]} Bxa4 {[%clk 00:34:16]} {[%emt
00:00:06]} 24. Rde1 {[%clk 00:10:25]} {[%emt 00:00:45]} Rc8 {[%clk 00:29:36]}
{[%emt 00:05:10]} 25. Bd3 {[%clk 00:08:00]} {[%emt 00:02:55]} b5 {[%clk
00:27:49]} {[%emt 00:02:17]} 26. Qa7 {[%clk 00:06:06]} {[%emt 00:02:32]} Re7
{[%clk 00:26:31]} {[%emt 00:01:39]} 27. Qe3 {[%clk 00:04:46]} {[%emt 00:01:49]}
bxc4 {[%clk 00:26:31]} {[%emt 00:00:31]} 28. Bc2 {[%clk 00:04:54]} {[%emt
00:00:21]} Bxc2 {[%clk 00:25:24]} {[%emt 00:01:37]} 29. Kxc2 {[%clk 00:05:19]}
{[%emt 00:00:05]} Qd7 {[%clk 00:24:45]} {[%emt 00:01:09]} 30. Qc3 {[%clk
00:04:17]} {[%emt 00:01:32]} Qa4+ {[%clk 00:24:28]} {[%emt 00:00:48]} 31. Kb2
{[%clk 00:04:36]} {[%emt 00:00:10]} a5 {[%clk 00:23:40]} {[%emt 00:01:19]} 32.
fxe5 {[%clk 00:04:41]} {[%emt 00:00:25]} Rb7 {[%clk 00:07:57]} {[%emt
00:16:12]} 33. exd6 {[%emt 00:02:05]} axb4 {[%clk 00:08:09]} {[%emt 00:00:17]}
34. axb4 {[%clk 00:03:22]} {[%emt 00:00:16]} Ra8 {[%clk 00:04:48]} {[%emt
00:03:51]} 35. Kc1 {[%clk 00:02:38]} {[%emt 00:01:15]} Qa2 {[%clk 00:00:43]}
{[%emt 00:04:33]} 36. Re7 {[%clk 00:01:03]} {[%emt 00:02:06]} Qa1+ {[%clk
00:00:40]} {[%emt 00:00:34]} 37. Qxa1 {[%clk 00:01:14]} {[%emt 00:00:18]} Rxa1+
{[%clk 00:01:06]} {[%emt 00:00:04]} 38. Kc2 {[%clk 00:01:41]} {[%emt 00:00:03]}
Raa7 {[%clk 00:01:16]} {[%emt 00:00:20]} 39. Rhe1 {[%clk 00:01:38]} {[%emt
00:00:33]} Rd7 {[%clk 00:00:50]} {[%emt 00:00:56]} 40. Kc3 {[%clk 00:01:25]}
{[%emt 00:00:44]} Kf8 {[%clk 00:00:48]} {[%emt 00:00:31]} 41. Kxc4 {[%clk
00:01:32]} {[%emt 00:00:22]} Rxe7 {[%clk 00:00:43]} {[%emt 00:00:35]} 42. Rxe7
{[%clk 00:01:54]} {[%emt 00:00:08]} Rxe7 {[%clk 00:00:51]} {[%emt 00:00:22]} 43.
dxe7+ {[%clk 00:02:19]} {[%emt 00:00:05]} Kxe7 {[%clk 00:01:19]} {[%emt
00:00:03]} 44. Kc5 {[%clk 00:02:43]} {[%emt 00:00:06]} g5 {[%clk 00:01:14]}
{[%emt 00:00:38]} 45. b5 {[%clk 00:02:42]} {[%emt 00:00:27]} Kd7 {[%clk
00:01:02]} {[%emt 00:00:43]} 46. b6 {[%clk 00:03:02]} {[%emt 00:00:10]} f4
{[%clk 00:01:16]} {[%emt 00:00:17]} 47. gxf4 {[%clk 00:03:17]} {[%emt
00:00:14]} gxf4 {[%clk 00:01:03]} {[%emt 00:00:42]} 48. Kd4 {[%clk 00:03:45]}
{[%emt 00:00:03]} Kc8 {[%emt 00:00:36]} 49. d6 {[%clk 00:03:59]} {[%emt
00:00:16]} Kd7 {[%clk 00:01:21]} {[%emt 00:00:09]} 50. b7 {[%emt 00:00:34]} 1-0

[Event "NJSK 2026 Jeugd C"]
[Site "Helmond, Netherlands"]
[Date "2026.04.26"]
[Round "2.1"]
[White "Leenen, Boyd"]
[Black "Botter, Simon"]
[Result "1/2-1/2"]
[TimeControl "90min/40moves + 30sec/move"]
[WhiteTitle "-"]
[BlackTitle "-"]
[WhiteFideId "1083937"]
[BlackFideId "40107698"]
[WhiteElo "2205"]
[BlackElo "1988"]

1. Nf3 {[%clk 01:30:57]} {[%emt 00:00:04]} Nf6 {[%clk 01:30:53]} {[%emt
00:00:05]} 2. b3 {[%clk 01:31:20]} {[%emt 00:00:07]} g6 {[%clk 01:31:01]}
{[%emt 00:00:23]} 3. Bb2 {[%clk 01:31:44]} {[%emt 00:00:06]} Bg7 {[%clk
01:31:27]} {[%emt 00:00:04]} 4. e3 {[%clk 01:31:36]} {[%emt 00:00:38]} c5
{[%emt 00:02:56]} 5. d4 {[%clk 01:31:04]} cxd4 {[%clk 01:28:21]} {[%emt
00:02:12]} 6. exd4 {[%clk 01:31:23]} {[%emt 00:00:10]} d5 {[%clk 01:23:24]}
{[%emt 00:05:27]} 7. Bd3 {[%clk 01:31:08]} {[%emt 00:00:45]} O-O {[%clk
01:22:49]} {[%emt 00:01:05]} 8. O-O {[%clk 01:31:15]} {[%emt 00:00:23]} Nc6
{[%clk 01:21:10]} {[%emt 00:02:10]} 9. a3 {[%clk 01:29:47]} {[%emt 00:01:58]}
a6 {[%clk 01:07:02]} {[%emt 00:14:38]} 10. Nbd2 {[%clk 01:24:41]} {[%emt
00:05:36]} b5 {[%clk 01:06:51]} {[%emt 00:00:42]} 11. Re1 {[%clk 01:24:42]}
{[%emt 00:00:27]} Nd7 {[%clk 01:04:26]} {[%emt 00:02:56]} 12. Ne5 {[%clk
01:05:15]} {[%emt 00:19:56]} Ndxe5 {[%clk 00:46:34]} {[%emt 00:18:22]} 13. dxe5
{[%clk 01:05:22]} {[%emt 00:00:23]} f6 {[%clk 00:45:42]} {[%emt 00:01:23]} 14.
exf6 {[%clk 01:04:14]} {[%emt 00:01:36]} Bxf6 {[%clk 00:45:39]} {[%emt
00:00:33]} 15. Bxf6 {[%clk 01:04:25]} {[%emt 00:00:19]} Rxf6 {[%clk 00:45:26]}
{[%emt 00:00:44]} 16. Nf3 {[%clk 00:55:11]} {[%emt 00:09:44]} Qd6 {[%clk
00:43:03]} {[%emt 00:02:53]} 17. c4 {[%clk 00:53:45]} {[%emt 00:01:56]} bxc4
{[%clk 00:37:31]} {[%emt 00:06:02]} 18. bxc4 {[%clk 00:54:08]} {[%emt
00:00:07]} Bg4 {[%clk 00:37:04]} {[%emt 00:00:57]} 19. Be2 {[%clk 00:40:44]}
{[%emt 00:13:53]} dxc4 {[%clk 00:34:26]} {[%emt 00:03:08]} 20. Bxc4+ {[%clk
00:40:46]} {[%emt 00:00:29]} Kg7 {[%clk 00:34:47]} {[%emt 00:00:10]} 21. Qxd6
{[%clk 00:40:34]} {[%emt 00:00:41]} Rxd6 {[%clk 00:35:07]} {[%emt 00:00:10]} 22.
Ne5 {[%clk 00:39:27]} {[%emt 00:01:37]} Nxe5 {[%clk 00:34:34]} {[%emt
00:01:04]} 23. Rxe5 {[%clk 00:39:55]} {[%emt 00:00:02]} Kf6 {[%clk 00:33:38]}
{[%emt 00:01:24]} 24. Rae1 {[%clk 00:39:58]} {[%emt 00:00:27]} Rc8 {[%clk
00:33:08]} {[%emt 00:01:02]} 25. Bf1 {[%clk 00:39:02]} {[%emt 00:01:24]} Re6
{[%clk 00:32:18]} {[%emt 00:01:21]} 26. Rxe6+ {[%clk 00:32:16]} {[%emt
00:07:16]} Bxe6 {[%clk 00:32:40]} {[%emt 00:00:08]} 27. Bxa6 {[%clk 00:32:44]}
{[%emt 00:00:03]} Ra8 {[%clk 00:33:00]} {[%emt 00:00:10]} 28. Bf1 {[%clk
00:33:11]} {[%emt 00:00:02]} Rxa3 {[%clk 00:33:22]} {[%emt 00:00:08]} 1/2-1/2

[Event "NJSK 2026 Jeugd C"]
[Site "Helmond, Netherlands"]
[Date "2026.04.26"]
[Round "2.2"]
[White "Omnes, Tiago"]
[Black "Thijssen, Freek"]
[Result "1/2-1/2"]
[TimeControl "90min/40moves + 30sec/move"]
[WhiteTitle "-"]
[BlackTitle "-"]
[WhiteFideId "1091867"]
[BlackFideId "1091840"]
[WhiteElo "1990"]
[BlackElo "2159"]

1. Nf3 {[%clk 01:30:57]} Nf6 {[%clk 01:30:54]} {[%emt 00:00:07]} 2. g3 {[%clk
01:31:24]} {[%emt 00:00:03]} e6 {[%clk 01:31:01]} {[%emt 00:00:22]} 3. Bg2
{[%clk 01:31:47]} {[%emt 00:00:06]} Be7 {[%clk 01:31:27]} {[%emt 00:00:05]} 4.
O-O {[%clk 01:32:09]} {[%emt 00:00:09]} O-O {[%clk 01:31:54]} {[%emt 00:00:03]}
5. c4 {[%clk 01:32:28]} {[%emt 00:00:11]} d5 {[%clk 01:32:18]} {[%emt
00:00:04]} 6. b3 {[%clk 01:32:48]} {[%emt 00:00:11]} c5 {[%clk 01:32:08]}
{[%emt 00:00:40]} 7. cxd5 {[%clk 01:33:10]} {[%emt 00:00:08]} exd5 {[%clk
01:31:50]} {[%emt 00:00:48]} 8. d4 {[%clk 01:33:30]} {[%emt 00:00:10]} b6
{[%clk 01:30:47]} {[%emt 00:01:34]} 9. Bb2 {[%clk 01:33:28]} {[%emt 00:00:31]}
Nc6 {[%clk 01:28:39]} {[%emt 00:02:38]} 10. Nc3 {[%clk 01:32:00]} {[%emt
00:01:59]} Ba6 {[%clk 01:26:23]} {[%emt 00:02:46]} 11. Rc1 {[%clk 01:28:46]}
{[%emt 00:03:44]} Rc8 {[%clk 01:24:35]} {[%emt 00:02:18]} 12. Re1 {[%clk
01:19:33]} {[%emt 00:09:43]} Ne4 {[%clk 01:18:05]} {[%emt 00:07:00]} 13. a3
{[%clk 01:10:41]} {[%emt 00:09:22]} Bf6 {[%clk 01:05:41]} {[%emt 00:12:54]} 14.
e3 {[%clk 01:06:40]} {[%emt 00:04:30]} Re8 {[%clk 01:00:25]} {[%emt 00:05:47]}
15. Na4 {[%clk 00:41:39]} {[%emt 00:25:32]} cxd4 {[%clk 00:46:14]} {[%emt
00:14:40]} 16. exd4 {[%clk 00:39:44]} {[%emt 00:02:24]} Bb5 {[%clk 00:23:02]}
{[%emt 00:23:42]} 17. Nc3 {[%clk 00:37:27]} {[%emt 00:02:47]} Nxc3 {[%clk
00:23:24]} {[%emt 00:00:09]} 18. Bxc3 {[%clk 00:37:12]} {[%emt 00:00:44]} Rxe1+
{[%clk 00:18:13]} {[%emt 00:05:41]} 19. Qxe1 {[%clk 00:37:25]} {[%emt
00:00:17]} Qd6 {[%clk 00:17:44]} {[%emt 00:01:00]} 20. Bb2 {[%clk 00:32:11]}
{[%emt 00:05:44]} Ba6 {[%clk 00:16:24]} {[%emt 00:01:50]} 21. Qe3 {[%clk
00:20:56]} {[%emt 00:11:43]} Qd7 {[%clk 00:09:57]} {[%emt 00:06:59]} 1/2-1/2